bitfinex/quotes_BTCUSD_20250225
["timestamp","ask_amount","ask_price","bid_price","bid_amount"]
[1740484587431,0.47997622,89456.0,89455.0,0.64792687]
[1740484587628,0.42397845,89456.0,89455.0,0.64792687]
[1740484587997,0.42397845,89456.0,89455.0,0.64892687]
[1740484588218,0.06645708,89455.0,89454.0,1e-07]
[1740484588378,0.46444325,89455.0,89454.0,1e-07]
[1740484588597,0.39798617,89455.0,89454.0,1e-07]
[1740484588837,0.39636375,89455.0,89454.0,1e-07]
[1740484589603,0.36385696,89455.0,89454.0,1e-07]
[1740484590180,0.003,89455.0,89454.0,1e-07]
[1740484591082,4.6114033,89457.0,89454.0,1e-07]
[1740484591272,4.6114033,89457.0,89456.0,0.09042051]
[1740484591462,4.6114033,89457.0,89456.0,0.13632051]
[1740484593002,4.8614033,89457.0,89456.0,0.13532051]
[1740484593236,4.6114033,89457.0,89456.0,0.13532051]
[1740484593707,4.6124033,89457.0,89456.0,0.14032051]
[1740484593888,4.8624033,89457.0,89456.0,0.13532051]
[1740484594094,4.8624033,89457.0,89456.0,0.14032051]
[1740484594252,4.8634033,89457.0,89456.0,0.14032051]
[1740484594458,4.8624033,89457.0,89456.0,0.13532051]
[1740484594657,4.6124033,89457.0,89456.0,0.96042133]
[1740484594895,4.6124033,89457.0,89456.0,1.06042133]
[1740484595099,4.39538779,89457.0,89456.0,1.14022133]
[1740484595767,4.39538779,89457.0,89456.0,1.14722133]
[1740484595768,4.64538779,89457.0,89456.0,1.14722133]
[1740484595972,4.64638779,89457.0,89456.0,1.14722133]
[1740484596146,4.39538779,89457.0,89456.0,1.14022133]
[1740484596360,4.39638779,89457.0,89456.0,1.14722133]
[1740484596518,4.64638779,89457.0,89456.0,1.14722133]
[1740484597238,4.64638779,89457.0,89456.0,1.05780082]
[1740484598019,4.76024475,89457.0,89456.0,0.85780082]
[1740484598442,4.64638779,89457.0,89456.0,0.73210082]
[1740484598869,4.64438779,89457.0,89456.0,0.82510082]
[1740484599073,4.64538779,89457.0,89456.0,0.83210082]
[1740484599431,4.64538779,89457.0,89456.0,0.72510082]
[1740484599650,4.64638779,89457.0,89456.0,0.72610082]
[1740484599853,4.672323,89457.0,89456.0,0.72610082]
[1740484600068,4.64538779,89457.0,89456.0,0.72510082]
[1740484600259,4.64638779,89457.0,89456.0,0.72610082]
[1740484600453,4.64538779,89457.0,89456.0,0.72510082]
[1740484600859,4.64538779,89457.0,89456.0,0.18230082]
[1740484601148,4.75924475,89457.0,89456.0,0.18230082]
[1740484601784,4.64538779,89457.0,89456.0,0.18230082]
[1740484601985,4.64638779,89457.0,89456.0,0.18730082]
[1740484602299,4.64538779,89457.0,89456.0,0.18230082]
[1740484602507,4.64638779,89457.0,89456.0,0.18730082]
[1740484602915,4.64638779,89457.0,89456.0,0.83010082]
[1740484603114,4.64638779,89457.0,89456.0,0.93010082]
[1740484603271,4.39438779,89457.0,89456.0,1.00300082]
[1740484603475,4.39538779,89457.0,89456.0,1.05420082]
[1740484604088,4.26728779,89457.0,89456.0,1.05420082]
[1740484604506,4.26628779,89457.0,89456.0,1.05020082]
[1740484605717,4.26628779,89457.0,89456.0,1.05720082]
[1740484606101,4.26628779,89457.0,89456.0,1.05020082]
[1740484606604,4.26628779,89457.0,89456.0,1.05720082]
[1740484607179,4.26628779,89457.0,89456.0,1.06733182]
[1740484609701,4.13818779,89457.0,89456.0,1.06733182]
[1740484610839,4.13818779,89457.0,89456.0,1.06033182]
[1740484612015,4.13818779,89457.0,89456.0,1.06733182]
[1740484612371,4.13818779,89457.0,89456.0,1.06033182]
[1740484612759,4.13818779,89457.0,89456.0,1.06733182]
[1740484612954,4.13818779,89457.0,89456.0,1.06033182]
[1740484613157,4.01008779,89457.0,89456.0,1.06033182]
[1740484613360,4.01008779,89457.0,89456.0,1.06733182]
[1740484613539,4.01008779,89457.0,89456.0,1.07997182]
[1740484614040,4.17776579,89457.0,89456.0,1.07997182]
[1740484615211,4.17776579,89457.0,89456.0,1.07297182]
[1740484615607,4.17776579,89457.0,89456.0,1.08166842]
[1740484617160,4.17776579,89457.0,89456.0,1.18166842]
[1740484617372,4.01008779,89457.0,89456.0,1.18166842]
[1740484617693,3.69306054,89457.0,89456.0,1.1345587]
[1740484617890,3.43420963,89457.0,89456.0,1.1094587]
[1740484618110,3.43420963,89457.0,89456.0,1.2771387]
[1740484618111,3.35605829,89457.0,89456.0,1.2771387]
[1740484618283,3.32242917,89457.0,89456.0,2.0271387]
[1740484618484,3.28880005,89457.0,89456.0,1.87478169]
[1740484618810,3.28880005,89457.0,89456.0,1.66778169]
[1740484619035,3.25517093,89457.0,89456.0,2.03546169]
[1740484619235,3.25517093,89457.0,89456.0,2.19086149]
[1740484619437,3.11401181,89457.0,89456.0,2.33283268]
[1740484619584,2.86173261,89457.0,89456.0,2.31750969]
[1740484619783,2.82810349,89457.0,89456.0,2.32450969]
[1740484619986,2.68084813,89457.0,89456.0,2.2937385]
[1740484620174,2.54989556,89457.0,89456.0,2.28281742]
[1740484620370,2.16776466,89457.0,89456.0,2.32450969]
[1740484620569,1.4524366,89457.0,89456.0,2.11750969]
[1740484620775,1.02797124,89457.0,89456.0,2.31750969]
[1740484620982,0.99782065,89457.0,89456.0,2.25204623]
[1740484621193,0.95657343,89457.0,89456.0,1.9706187]
[1740484621398,0.95657343,89457.0,89456.0,2.0200987]
[1740484622099,0.95657343,89457.0,89456.0,2.05476643]
[1740484622298,0.78927411,89457.0,89456.0,2.08980556]
[1740484622547,0.69174185,89457.0,89456.0,1.82875309]
[1740484622783,0.65395251,89457.0,89456.0,1.38144643]
[1740484623072,0.33045251,89457.0,89456.0,1.17680994]
[1740484623280,0.33045251,89457.0,89456.0,1.18380994]
[1740484623476,0.33045251,89457.0,89456.0,0.96416994]
[1740484623615,0.33045251,89457.0,89456.0,1.42680994]
[1740484623836,0.33045251,89457.0,89456.0,1.43380994]
[1740484624039,0.33045251,89457.0,89456.0,1.22680994]
[1740484624323,0.33045251,89457.0,89456.0,1.42680994]
[1740484624526,0.33045251,89457.0,89456.0,1.43380994]
[1740484625254,0.33045251,89457.0,89456.0,1.18380994]
[1740484625583,0.33045251,89457.0,89456.0,1.17680994]
[1740484625780,0.33045251,89457.0,89456.0,1.17580994]
[1740484626020,0.29683716,89457.0,89456.0,1.60048994]
[1740484626225,0.29683716,89457.0,89456.0,1.56904447]
[1740484626484,0.0709144,89457.0,89456.0,1.893992]
[1740484626686,0.0709144,89457.0,89456.0,1.97830174]
[1740484626687,0.00020574,89457.0,89456.0,1.97830174]
[1740484626885,0.223446,89507.0,89487.0,0.65]
[1740484627243,0.223467,89499.0,89487.0,0.5851911]
[1740484627442,0.167606,89496.0,89487.0,0.5851911]
[1740484627600,0.223464,89500.0,89487.0,0.5687911]
[1740484627788,0.223471,89497.0,89487.0,0.5687911]
[1740484627991,0.000848,89504.0,89487.0,0.5687911]
[1740484628239,0.223466,89500.0,89487.0,0.5687911]
[1740484628539,0.167597,89501.0,89487.0,0.58306914]
[1740484628683,0.0083635,89488.0,89487.0,0.58306914]
[1740484629131,0.0093635,89488.0,89487.0,0.59006914]
[1740484629446,0.000848,89504.0,89503.0,0.4]
[1740484629647,0.03549123,89540.0,89512.0,0.4]
[1740484629832,0.001116,89537.0,89512.0,1.3890876]
[1740484630036,0.168421,89513.0,89512.0,1.3890876]
[1740484630376,0.168421,89513.0,89512.0,1.42881111]
[1740484630377,0.000848,89513.0,89512.0,1.42881111]
[1740484630753,0.000848,89513.0,89512.0,1.46240511]
[1740484630952,0.168421,89513.0,89512.0,1.46940511]
[1740484631378,0.168421,89513.0,89512.0,1.04785401]
[1740484631750,0.168421,89513.0,89512.0,1.24785401]
[1740484631954,0.168421,89513.0,89512.0,1.22340854]
[1740484632183,0.168421,89513.0,89512.0,1.12340854]
[1740484632346,0.168421,89513.0,89512.0,1.08281454]
[1740484632771,0.000848,89513.0,89512.0,1.08981454]
[1740484632963,0.168421,89513.0,89512.0,1.08981454]
[1740484633214,0.168421,89513.0,89512.0,1.18981454]
[1740484633387,0.000848,89513.0,89512.0,1.2815365]
[1740484633583,0.000848,89513.0,89512.0,1.2745365]
[1740484634003,0.000848,89513.0,89512.0,1.28985498]
[1740484634288,0.000848,89513.0,89512.0,1.42404608]
[1740484634686,0.1449134,89543.0,89536.0,0.199]
[1740484634889,0.1449134,89543.0,89536.0,0.5331911]
[1740484635315,0.1449134,89543.0,89536.0,0.5667741]
[1740484636149,0.1449134,89543.0,89536.0,0.59761437]
[1740484636348,0.1449134,89543.0,89536.0,0.61298829]
[1740484636558,0.1449134,89543.0,89536.0,1.15474829]
[1740484636964,0.1449134,89543.0,89536.0,1.16174829]
[1740484637347,0.1449134,89543.0,89536.0,1.16738829]
[1740484637556,0.1449134,89543.0,89536.0,1.17438829]
[1740484638202,0.001036,89537.0,89536.0,1.17438829]
[1740484638398,0.001036,89537.0,89536.0,1.42438829]
[1740484638602,0.001036,89537.0,89536.0,1.43138829]
[1740484638802,0.001036,89537.0,89536.0,1.42438829]
[1740484639017,0.3124304,89543.0,89542.0,0.399]
[1740484639362,0.3124304,89543.0,89542.0,0.1126]
[1740484639582,0.3124304,89543.0,89542.0,0.199]
[1740484639812,0.34276278,89543.0,89542.0,0.01524824]
[1740484640392,0.3124304,89543.0,89542.0,2.4e-07]
[1740484640599,0.244643,89529.0,89528.0,0.0126]
[1740484640807,0.0771,89529.0,89515.0,0.5428]
[1740484641015,0.049,89528.0,89520.0,7.8e-07]
[1740484641797,0.049,89528.0,89516.0,0.0015637]
[1740484641973,0.049,89528.0,89517.0,0.5428]
[1740484642175,0.049,89528.0,89518.0,0.00156363]
[1740484642589,0.049,89528.0,89517.0,0.5428]
[1740484642763,0.049,89528.0,89520.0,0.007]
[1740484642960,0.049,89528.0,89520.0,0.00856368]
[1740484643263,0.049,89528.0,89522.0,0.09042051]
[1740484643522,0.049,89528.0,89523.0,0.00156348]
[1740484643885,0.049,89528.0,89524.0,0.5428]
[1740484644097,0.001,89528.0,89525.0,0.00156337]
[1740484644297,0.001,89528.0,89527.0,0.2]
[1740484644521,0.001,89528.0,89527.0,0.20156309]
[1740484645085,0.002,89528.0,89527.0,0.20156309]
[1740484645295,0.001,89528.0,89527.0,0.20506375]
[1740484645498,0.1449134,89543.0,89540.0,0.1]
[1740484645859,0.1449134,89543.0,89541.0,0.8653]
[1740484646036,0.1449134,89543.0,89542.0,0.0126]
[1740484646443,0.1449134,89543.0,89542.0,0.00350066]
[1740484646618,0.1459134,89543.0,89542.0,0.01610066]
[1740484646826,0.1469134,89543.0,89542.0,0.01610066]
[1740484647727,0.1469134,89543.0,89542.0,0.86780066]
[1740484647930,0.1459134,89543.0,89542.0,0.8643]
[1740484648261,0.1459134,89543.0,89542.0,0.8713]
[1740484648461,0.1469134,89543.0,89542.0,0.8783]
[1740484648687,0.1469134,89543.0,89542.0,0.8713]
[1740484648916,0.1449134,89543.0,89542.0,0.8643]
[1740484649160,0.1449134,89543.0,89542.0,0.8743]
[1740484649161,0.1459134,89543.0,89542.0,0.8743]
[1740484649608,0.1459134,89543.0,89542.0,0.3235]
[1740484649935,0.2718134,89543.0,89542.0,0.3335]
[1740484650936,0.2726612,89543.0,89542.0,0.3335]
[1740484651138,0.2726612,89543.0,89542.0,0.3265]
[1740484651514,0.2716612,89543.0,89542.0,0.3335]
[1740484651743,0.2706612,89543.0,89542.0,0.3305]
[1740484651880,0.2716612,89543.0,89542.0,0.3305]
[1740484652563,0.2726612,89543.0,89542.0,0.3305]
[1740484652764,0.2726612,89543.0,89542.0,0.2524]
[1740484652961,0.2726612,89543.0,89529.0,0.5408]
[1740484652962,0.25,89542.0,89530.0,0.1954]
[1740484653165,0.25,89542.0,89529.0,0.5408]
[1740484653166,0.0083054,89535.0,89514.0,0.1954]
[1740484653369,0.0773,89533.0,89514.0,0.1954]
[1740484653586,0.0773,89531.0,89514.0,0.1954]
[1740484653792,0.0773,89531.0,89515.0,0.00156382]
[1740484654208,0.0773,89531.0,89514.0,0.1954]
[1740484654609,0.0773,89531.0,89514.0,0.1969639]
[1740484655039,0.0773,89531.0,89515.0,0.09042051]
[1740484655231,0.0773,89531.0,89524.0,0.09042051]
[1740484655457,0.0783,89531.0,89525.0,0.00156361]
[1740484655607,0.0783,89531.0,89524.0,0.09042051]
[1740484655813,0.0773,89531.0,89524.0,0.09042051]
[1740484656179,0.01245,89530.0,89514.0,0.1954]
[1740484656327,0.0783,89531.0,89515.0,0.007]
[1740484656506,0.0793,89531.0,89515.0,0.007]
[1740484656712,0.0793,89531.0,89516.0,0.0015639]
[1740484657466,0.0783,89531.0,89516.0,0.0015639]
[1740484657666,0.0773,89531.0,89516.0,0.0015639]
[1740484657866,0.0773,89531.0,89517.0,0.00156366]
[1740484658070,0.0783,89531.0,89524.0,0.007]
[1740484658479,0.0773,89531.0,89525.0,0.00156366]
[1740484658683,0.0783,89531.0,89516.0,0.0015635]
[1740484658886,0.0793,89531.0,89516.0,0.0085635]
[1740484659106,0.0783,89531.0,89517.0,0.0126]
[1740484659307,0.0773,89531.0,89518.0,0.00156357]
[1740484659507,0.001,89531.0,89524.0,0.09042051]
[1740484659726,0.002,89531.0,89525.0,0.00856343]
[1740484659854,0.001,89531.0,89525.0,0.00856343]
[1740484660049,0.002,89531.0,89525.0,0.00856343]
[1740484660256,0.001,89531.0,89525.0,0.00856343]
[1740484660940,0.0763,89542.0,89525.0,0.00156343]
[1740484661141,0.001,89531.0,89525.0,0.00156343]
[1740484661404,0.002,89531.0,89526.0,0.7362]
[1740484661642,0.001,89531.0,89527.0,0.00156326]
[1740484661798,0.002,89531.0,89527.0,0.00156326]
[1740484662519,0.0008483,89547.0,89528.0,0.7362]
[1740484662747,0.001,89531.0,89529.0,0.00156324]
[1740484662914,0.002,89531.0,89529.0,0.00156324]
[1740484663115,0.001,89531.0,89529.0,0.00156324]
[1740484663516,0.002,89531.0,89529.0,0.00156324]
[1740484663961,0.001,89531.0,89529.0,0.00156324]
[1740484664163,0.002,89531.0,89530.0,0.1]
[1740484664370,0.001,89531.0,89530.0,0.1126]
[1740484664784,0.0777,89553.0,89530.0,0.1126]
[1740484664958,0.0777,89553.0,89531.0,0.73776316]
[1740484665172,0.0777,89553.0,89531.0,0.7352]
[1740484665933,0.0777,89553.0,89531.0,0.7342]
[1740484666348,0.0777,89553.0,89532.0,0.0126]
[1740484666525,0.0777,89553.0,89532.0,0.01416323]
[1740484666976,0.0777,89553.0,89532.0,0.00156323]
[1740484667182,0.0777,89553.0,89531.0,0.7412]
[1740484667183,0.0777,89553.0,89533.0,0.0126]
[1740484667479,0.0495,89552.0,89534.0,0.5388]
[1740484668134,0.33995394,89552.0,89533.0,0.1954]
[1740484668309,0.29946,89552.0,89533.0,0.1954]
[1740484668510,0.3324,89550.0,89533.0,0.1954]
[1740484668712,0.0824,89550.0,89533.0,0.1954]
[1740484669279,0.0824,89550.0,89533.0,0.1969635]
[1740484670152,0.0834,89550.0,89533.0,0.2039635]
[1740484670406,0.0834,89550.0,89533.0,0.1954]
[1740484670607,0.10348952,89550.0,89533.0,0.20944]
[1740484670798,0.0854,89550.0,89533.0,0.20944]
[1740484671093,0.0834,89550.0,89533.0,0.2040035]
[1740484671311,0.0844,89550.0,89533.0,0.2110035]
[1740484671509,0.25,89551.0,89550.0,0.0146]
[1740484671928,0.04946,89552.0,89550.0,0.0146]
[1740484672291,0.04946,89552.0,89550.0,0.0136]
[1740484672496,0.0008483,89578.0,89550.0,0.0136]
[1740484672842,0.0008483,89578.0,89550.0,0.0126]
[1740484672843,0.00848248,89555.0,89550.0,0.0126]
[1740484673464,0.001,89552.0,89550.0,0.0176]
[1740484673664,0.001,89552.0,89550.0,0.0126]
[1740484673821,0.001,89551.0,89550.0,0.0196]
[1740484674244,0.00948248,89555.0,89550.0,0.0176]
[1740484674590,0.0822,89554.0,89550.0,0.0176]
[1740484674742,0.001,89552.0,89550.0,0.0246]
[1740484675105,0.0008476,89553.0,89550.0,0.0176]
[1740484675549,0.0475,89552.0,89550.0,0.0246]
[1740484675763,0.0475,89552.0,89550.0,0.0196]
[1740484676192,0.0475,89552.0,89535.0,0.5388]
[1740484676652,0.0485,89552.0,89550.0,0.007]
[1740484676851,0.0485,89552.0,89535.0,0.5388]
[1740484677141,0.0495,89552.0,89550.0,0.014]
[1740484677568,0.0495,89552.0,89550.0,0.007]
[1740484678004,0.0505,89552.0,89550.0,0.014]
[1740484678407,0.0505,89552.0,89536.0,0.1954]
[1740484678760,0.0485,89552.0,89536.0,0.1954]
[1740484679016,0.0485,89552.0,89550.0,0.007]
[1740484679218,0.0495,89552.0,89550.0,0.007]
[1740484679407,0.0495,89552.0,89536.0,0.1954]
[1740484679554,0.0505,89552.0,89536.0,0.2024]
[1740484679754,0.0495,89552.0,89536.0,0.2024]
[1740484679961,0.0475,89552.0,89536.0,0.19536]
[1740484680156,0.0495,89552.0,89550.0,0.007]
[1740484680563,0.0485,89552.0,89536.0,0.19536]
[1740484680867,0.0495,89552.0,89525.0,0.06185472]
[1740484681072,0.0778,89546.0,89525.0,0.00282058]
[1740484681474,0.00834254,89527.0,89525.0,0.00282058]
[1740484681725,0.00834254,89527.0,89525.0,0.32632058]
[1740484682131,0.0796,89526.0,89525.0,0.32632058]
[1740484682483,0.0796,89526.0,89525.0,0.33132058]
[1740484682967,0.0796,89526.0,89525.0,0.32632058]
[1740484683098,0.0796,89526.0,89525.0,0.33332058]
[1740484683515,0.0796,89526.0,89525.0,0.32632058]
[1740484683714,0.0796,89526.0,89525.0,0.33332058]
[1740484683917,0.25,89546.0,89525.0,0.33332058]
[1740484683918,0.0809,89545.0,89525.0,0.33332058]
[1740484684118,0.001,89527.0,89525.0,0.33332058]
[1740484684599,0.0761,89532.0,89525.0,0.33332058]
[1740484684930,0.001,89526.0,89525.0,0.32632058]
[1740484685336,0.0761,89532.0,89525.0,0.33332058]
[1740484685572,0.0761,89532.0,89525.0,0.32632058]
[1740484685782,0.001,89527.0,89525.0,0.32632058]
[1740484685980,0.001,89527.0,89525.0,0.33332058]
[1740484686205,0.001,89527.0,89525.0,0.32632058]
[1740484686607,0.001,89527.0,89525.0,0.33332058]
[1740484686807,0.001,89527.0,89525.0,0.32632058]
[1740484687241,0.001,89527.0,89526.0,0.00156364]
[1740484687392,0.001,89527.0,89526.0,0.00156353]
[1740484688258,0.001,89527.0,89526.0,0.95428404]
[1740484688466,0.001,89527.0,89526.0,0.95272051]
[1740484689232,0.0008477,89532.0,89526.0,0.95272051]
[1740484689446,0.0008477,89532.0,89525.0,0.00451598]
[1740484689447,0.0008477,89532.0,89527.0,0.8623]
[1740484689653,0.0008477,89532.0,89527.0,0.8749]
[1740484690059,0.0008477,89532.0,89528.0,0.00156348]
[1740484691079,0.0008477,89532.0,89529.0,0.0116]
[1740484691633,0.0008477,89532.0,89529.0,0.01316338]
[1740484691835,0.0018477,89532.0,89527.0,0.866779]
[1740484692051,0.0018477,89532.0,89527.0,0.3235]
[1740484692245,0.0778,89531.0,89527.0,0.3235]
[1740484692469,0.25,89530.0,89527.0,0.3235]
[1740484692674,0.25,89530.0,89529.0,0.007]
[1740484692889,0.25,89530.0,89527.0,0.3235]
[1740484693341,0.25,89530.0,89527.0,0.007]
[1740484693628,0.00195498,89529.0,89514.0,0.3235]
[1740484693800,0.0778,89528.0,89514.0,0.3235]
[1740484694002,0.00195507,89527.0,89514.0,0.3235]
[1740484694205,0.00195507,89527.0,89496.0,0.3235]
[1740484694382,0.0778,89525.0,89496.0,0.3235]
[1740484694586,0.0778,89523.0,89496.0,0.3235]
[1740484694791,0.00195534,89522.0,89496.0,0.3235]
[1740484694988,0.00195534,89522.0,89517.0,0.007]
[1740484695618,0.00195534,89522.0,89496.0,0.3235]
[1740484695826,0.03895705,89521.0,89500.0,2.84515559]
[1740484696026,0.001,89523.0,89517.0,0.003]
[1740484696247,0.001,89523.0,89500.0,2.84515559]
[1740484696248,0.0494,89522.0,89500.0,2.23755441]
[1740484696411,0.0494,89522.0,89500.0,2.09575049]
[1740484696580,0.05781103,89501.0,89500.0,1.29052656]
[1740484696782,0.05781103,89501.0,89500.0,0.98213688]
[1740484696783,0.07359213,89501.0,89500.0,0.98213688]
[1740484697043,0.03479213,89501.0,89500.0,0.83703311]
[1740484697343,0.03479213,89501.0,89500.0,0.72056311]
[1740484697344,0.03303185,89501.0,89500.0,0.72056311]
[1740484697546,0.03648796,89501.0,89500.0,0.72056311]
[1740484697925,0.01753324,89501.0,89500.0,0.72056311]
[1740484698353,0.01753324,89501.0,89500.0,0.71356311]
[1740484698746,0.001,89501.0,89500.0,0.71356311]
[1740484699034,0.1,89504.0,89500.0,0.71356311]
[1740484699256,0.1,89510.0,89500.0,0.71356311]
[1740484699432,0.1,89506.0,89500.0,0.71356311]
[1740484699633,0.001,89501.0,89500.0,0.71356311]
[1740484700233,0.3772,89501.0,89500.0,0.63715851]
[1740484700414,0.35,89501.0,89500.0,0.60979561]
[1740484700652,0.45,89501.0,89500.0,0.57800431]
[1740484700860,0.35,89501.0,89500.0,0.57800431]
[1740484701083,0.4951,89501.0,89500.0,0.57800431]
[1740484701719,0.3951,89501.0,89500.0,0.57800431]
[1740484701926,0.3951,89501.0,89500.0,0.57700431]
[1740484702172,0.4951,89501.0,89500.0,0.57700431]
[1740484702341,0.4961,89501.0,89500.0,0.57700431]
[1740484702545,0.4951,89501.0,89500.0,0.57700431]
[1740484702747,0.35,89501.0,89500.0,0.57700431]
[1740484702948,0.25,89501.0,89500.0,0.57700431]
[1740484703755,0.35,89501.0,89500.0,0.57700431]
[1740484704253,0.45,89501.0,89500.0,0.57700431]
[1740484705910,0.46753568,89501.0,89500.0,0.57700431]
[1740484706142,0.51428925,89501.0,89500.0,0.57700431]
[1740484707281,0.51428925,89501.0,89448.0,0.3235]
[1740484707282,0.09780598,89472.0,89448.0,0.3235]
[1740484707941,0.09780598,89462.0,89432.0,0.09042051]
[1740484709126,0.1,89469.0,89432.0,0.09042051]
[1740484709329,0.09780598,89464.0,89432.0,0.09042051]
[1740484709530,0.09780598,89458.0,89432.0,0.09042051]
[1740484709729,0.09780598,89458.0,89457.0,0.001]
[1740484709928,0.09780598,89458.0,89432.0,0.09042051]
[1740484709929,0.09780598,89464.0,89432.0,0.09042051]
[1740484710354,0.09780598,89464.0,89456.0,0.0026966]
[1740484710583,0.09780598,89465.0,89456.0,0.0016966]
[1740484710915,0.001,89458.0,89457.0,0.09142051]
[1740484711759,0.001,89458.0,89457.0,0.09042051]
[1740484711938,0.25,89471.0,89457.0,0.09042051]
[1740484712145,0.1,89468.0,89457.0,0.09042051]
[1740484712349,0.09780598,89465.0,89456.0,0.0016966]
[1740484713328,0.25,89467.0,89456.0,0.0016966]
[1740484713723,0.3279,89481.0,89456.0,0.0016966]
[1740484713724,0.3279,89481.0,89460.0,0.09042051]
[1740484713880,0.27752,89485.0,89460.0,0.09042051]
[1740484714085,0.09780598,89482.0,89460.0,0.09042051]
[1740484714290,0.1,89479.0,89460.0,0.09042051]
[1740484714490,0.09780598,89489.0,89460.0,0.09042051]
[1740484714673,0.1,89487.0,89460.0,0.09042051]
[1740484714870,0.09780598,89490.0,89460.0,0.09042051]
[1740484715070,0.09780598,89489.0,89460.0,0.09042051]
[1740484715293,0.002,89485.0,89460.0,0.09042051]
[1740484715498,0.01753957,89483.0,89460.0,0.09042051]
[1740484716309,0.25,89482.0,89456.0,0.0016966]
[1740484716482,0.25,89482.0,89455.0,0.3235]
[1740484716483,0.1,89469.0,89455.0,0.29676692]
[1740484717057,0.25,89471.0,89455.0,0.29676692]
[1740484717262,0.25,89471.0,89456.0,0.09042051]
[1740484717390,0.25,89471.0,89460.0,0.001]
[1740484717593,0.01754055,89472.0,89456.0,0.09042051]
[1740484718691,0.01754055,89472.0,89456.0,0.38718743]
[1740484718893,0.09780598,89495.0,89457.0,0.1254]
[1740484719137,0.0008479,89501.0,89465.0,0.09042051]
[1740484719478,0.27756,89498.0,89466.0,0.0755]
[1740484719698,0.34780598,89497.0,89466.0,0.0755]
[1740484719875,0.1,89492.0,89466.0,0.0755]
[1740484720072,0.35,89492.0,89466.0,0.0755]
[1740484720246,0.1,89486.0,89458.0,0.29676692]
[1740484721851,0.01753895,89480.0,89458.0,0.29676692]
[1740484722091,0.09780598,89477.0,89458.0,0.29676692]
[1740484722589,0.09780598,89476.0,89458.0,0.29676692]
[1740484722792,0.09780598,89476.0,89458.0,0.25776692]
[1740484722993,0.1,89473.0,89447.0,0.0832]
[1740484723149,0.09780598,89471.0,89447.0,0.0832]
[1740484723814,0.09780598,89471.0,89447.0,0.04107052]
[1740484724062,0.09780598,89471.0,89442.0,0.051495]
[1740484724063,0.09780598,89463.0,89457.0,0.0016964]
[1740484724446,0.25,89468.0,89457.0,0.0016964]
[1740484724447,0.09780598,89462.0,89457.0,0.0016964]
[1740484725892,0.01754303,89461.0,89457.0,0.0016964]
[1740484726775,0.01754303,89461.0,89457.0,0.0787964]
[1740484727078,0.0126,89488.0,89458.0,0.09042051]
[1740484727408,0.01754184,89476.0,89459.0,0.25776692]
[1740484728146,0.01754184,89476.0,89470.0,0.00219402]
[1740484728371,0.17756,89498.0,89472.0,0.0466]
[1740484728574,0.17756,89498.0,89479.0,0.09261453]
[1740484728575,0.19509751,89498.0,89479.0,0.09261453]
[1740484728887,0.19509751,89498.0,89486.0,0.0761]
[1740484729044,0.17756,89498.0,89486.0,0.0761]
[1740484732185,0.2508482,89497.0,89486.0,0.0761]
[1740484733228,0.2508482,89497.0,89480.0,0.25776692]
[1740484733635,0.34865418,89497.0,89480.0,0.25776692]
[1740484733842,0.34780598,89492.0,89467.0,0.25776692]
[1740484734137,0.09780598,89485.0,89466.0,0.0807]
[1740484734481,0.09780598,89485.0,89459.0,0.30646692]
[1740484734683,0.09780598,89481.0,89459.0,0.30646692]
[1740484735100,0.01753802,89479.0,89459.0,0.30646692]
[1740484736863,0.01753802,89479.0,89460.0,0.09042051]
[1740484737655,0.0008484,89488.0,89465.0,0.00219402]
[1740484738018,0.0008484,89488.0,89460.0,0.09042051]
[1740484738019,0.0008484,89488.0,89471.0,0.00219402]
[1740484738616,0.10001928,89511.0,89471.0,0.00219402]
[1740484738617,0.0101298,89532.0,89479.0,0.0823]
[1740484738758,0.0101298,89532.0,89480.0,0.79656692]
[1740484738962,0.06566399,89532.0,89480.0,0.79656692]
[1740484739186,0.30500193,89533.0,89480.0,0.79656692]
[1740484739505,0.0101298,89531.0,89480.0,0.79656692]
[1740484739717,0.0101298,89531.0,89481.0,0.1883072]
[1740484741401,0.0101298,89531.0,89481.0,0.1882672]
[1740484741586,0.0101298,89531.0,89481.0,0.09042051]
[1740484741993,0.03174462,89530.0,89481.0,0.09042051]
[1740484742371,0.01167942,89529.0,89481.0,0.09042051]
[1740484742581,0.01167942,89529.0,89482.0,0.79656692]
[1740484743325,0.01167942,89529.0,89490.0,0.09042051]
[1740484743476,0.01167942,89529.0,89490.0,0.09946256]
[1740484743685,0.01167942,89529.0,89490.0,0.09042051]
[1740484744248,0.25,89533.0,89491.0,0.0487]
[1740484744490,0.25,89533.0,89492.0,0.0825]
[1740484745284,0.30500193,89533.0,89492.0,0.0825]
[1740484745668,0.25,89533.0,89492.0,0.10466205]
[1740484746012,0.25,89533.0,89499.0,0.09042051]
[1740484746232,0.25,89533.0,89500.0,0.79656692]
[1740484747496,0.30500193,89533.0,89500.0,0.79656692]
[1740484747902,0.25,89533.0,89500.0,0.79656692]
[1740484748223,0.25,89533.0,89500.0,0.79660692]
[1740484748753,0.03240282,89532.0,89500.0,0.79660692]
[1740484750744,0.01753437,89525.0,89500.0,0.79660692]
[1740484750955,0.03240282,89524.0,89500.0,0.79660692]
[1740484751272,0.03240282,89524.0,89508.0,0.09042051]
[1740484751499,0.03240282,89532.0,89509.0,0.25776692]
[1740484751704,0.2508481,89533.0,89510.0,0.0789]
[1740484752640,0.0008481,89533.0,89517.0,0.09042051]
[1740484752874,0.0008481,89533.0,89519.0,0.0474]
[1740484753137,0.0008481,89533.0,89520.0,0.0781]
[1740484753886,0.0008481,89533.0,89521.0,0.79656692]
[1740484754890,0.25,89537.0,89521.0,0.79656692]
[1740484755998,0.05510212,89571.0,89521.0,0.79656692]
[1740484756229,0.05549459,89569.0,89522.0,0.89781566]
[1740484756361,0.03235113,89568.0,89522.0,0.79656692]
[1740484756702,0.03235113,89568.0,89520.0,0.0781]
[1740484756703,0.05560801,89567.0,89520.0,0.0781]
[1740484757003,0.07265228,89557.0,89521.0,4e-05]
[1740484757177,0.01752855,89557.0,89521.0,4e-05]
[1740484757965,0.05538223,89556.0,89521.0,4e-05]
[1740484758189,0.07265228,89557.0,89521.0,4e-05]
[1740484758425,0.05510212,89571.0,89521.0,4e-05]
[1740484758763,0.01752896,89549.0,89521.0,4e-05]